fUSD/lending_fUSD_20240223
["ID","MTS","AMOUNT","RATE_DAILY","PERIOD"]
[315008592,1708727464113,-5017.79,0.00039781,7]
[315008593,1708727464122,-150.0,0.00039798,2]
[315008594,1708727464131,-150.0,0.0003982,2]
[315008595,1708727464141,-150.0,0.00039831,7]
[315008596,1708727464150,-150.0,0.0003984,7]
[315008597,1708727464159,-150.0,0.00039844,2]
[315008598,1708727464168,-150.0,0.00039851,2]
[315008599,1708727464177,-150.0,0.0003987,2]
[315008600,1708727464186,-150.0,0.00039884,2]
[315008601,1708727464195,-150.0,0.00039885,2]
[315008602,1708727464205,-150.0,0.00039887,7]
[315008603,1708727464214,-540.1,0.00039894,4]
[315008604,1708727464223,-500.0,0.00039894,4]
[315008605,1708727464233,-500.0,0.00039894,4]
[315008606,1708727464243,-538.04,0.00039894,4]
[315008607,1708727464252,-150.0,0.00039897,2]
[315008608,1708727464261,-361.48224482,0.000399,2]
[315008609,1708727464270,-3481.97,0.000399,7]
[315008610,1708727464279,-2700.05,0.000399,7]
[315008611,1708727464290,-1025.29127368,0.000399,7]
[315008612,1708727464299,-1025.29127368,0.000399,7]
[315008613,1708727464309,-1025.29127368,0.000399,7]
[315008614,1708727464318,-1025.29127368,0.000399,7]
[315008615,1708727464327,-1025.29127368,0.000399,7]
[315008616,1708727464337,-1025.29127368,0.000399,7]
[315008617,1708727464346,-1025.29127368,0.000399,7]
[315008618,1708727464355,-1025.29127368,0.000399,7]
[315008619,1708727464365,-1025.29127368,0.000399,7]
[315008620,1708727464374,-1025.29127368,0.000399,7]
[315008621,1708727464383,-1025.29127368,0.000399,7]
[315008622,1708727464392,-1025.29127368,0.000399,7]
[315008623,1708727464402,-1025.29127368,0.000399,7]
[315008624,1708727464412,-1025.29127368,0.000399,7]
[315008625,1708727464421,-1025.29127368,0.000399,7]
[315008626,1708727464430,-1025.29127368,0.000399,7]
[315008627,1708727464440,-1025.29127368,0.000399,7]
[315008628,1708727464451,-1025.29127368,0.000399,7]
[315008629,1708727464461,-1025.29127368,0.000399,7]
[315008630,1708727464470,-1025.29,0.000399,7]
[315008631,1708727464480,-459.97552726,0.000399,7]
[315008632,1708727464490,-459.97552726,0.000399,7]
[315008633,1708727464500,-459.97552726,0.000399,7]
[315008634,1708727464509,-459.97552726,0.000399,7]
[315008635,1708727464520,-459.97552726,0.000399,7]
[315008636,1708727464530,-459.97552726,0.000399,7]
[315008637,1708727464540,-459.97552726,0.000399,7]
[315008638,1708727464549,-459.97552726,0.000399,7]
[315008639,1708727464559,-459.97552726,0.000399,7]
[315008640,1708727464568,-459.97552726,0.000399,7]
[315008641,1708727464577,-459.97552726,0.000399,7]
[315008642,1708727464586,-459.97552726,0.000399,7]
[315008643,1708727464596,-459.97552726,0.000399,7]
[315008644,1708727464605,-459.97552726,0.000399,7]
[315008645,1708727464614,-459.97552726,0.000399,7]
[315008646,1708727464624,-459.97552726,0.000399,7]
[315008647,1708727464634,-459.97552726,0.000399,7]
[315008648,1708727464644,-459.97552726,0.000399,7]
[315008649,1708727464653,-459.97552726,0.000399,7]
[315008650,1708727464662,-459.97,0.000399,7]
[315008651,1708727464673,-720.26818974,0.000399,7]
[315008652,1708727464683,-720.26818974,0.000399,7]
[315008653,1708727464694,-720.26818974,0.000399,7]
[315008654,1708727464704,-720.26818974,0.000399,7]
[315008655,1708727464714,-720.26818974,0.000399,7]
[315008656,1708727464723,-720.26818974,0.000399,7]
[315008657,1708727464733,-720.26818974,0.000399,7]
[315008658,1708727464742,-720.26818974,0.000399,7]
[315008659,1708727464752,-720.26818974,0.000399,7]
[315008660,1708727464761,-720.26818974,0.000399,7]
[315008661,1708727464771,-720.26818974,0.000399,7]
[315008662,1708727464780,-720.26818974,0.000399,7]
[315008663,1708727464791,-720.26818974,0.000399,7]
[315008664,1708727464800,-720.26818974,0.000399,7]
[315008665,1708727464810,-720.26818974,0.000399,7]
[315008666,1708727464819,-720.26818974,0.000399,7]
[315008667,1708727464829,-720.26818974,0.000399,7]
[315008668,1708727464839,-720.26818974,0.000399,7]
[315008669,1708727464849,-720.26818974,0.000399,7]
[315008670,1708727464858,-720.26,0.000399,7]
[315008671,1708727464868,-288.92193258,0.000399,7]
[315008672,1708727464878,-288.92193258,0.000399,7]
[315008673,1708727464887,-288.92193258,0.000399,7]
[315008674,1708727464897,-288.92193258,0.000399,7]
[315008675,1708727464907,-288.92193258,0.000399,7]
[315008676,1708727464916,-288.92193258,0.000399,7]
[315008677,1708727464926,-288.92193258,0.000399,7]
[315008678,1708727464935,-288.92193258,0.000399,7]
[315008679,1708727464945,-288.92193258,0.000399,7]
[315008680,1708727464955,-288.92193258,0.000399,7]
[315008681,1708727464964,-288.92193258,0.000399,7]
[315008682,1708727464975,-288.92193258,0.000399,7]
[315008683,1708727464985,-288.92193258,0.000399,7]
[315008684,1708727464994,-288.92193258,0.000399,7]
[315008685,1708727465004,-288.92193258,0.000399,7]
[315008686,1708727465014,-288.92193258,0.000399,7]
[315008687,1708727465023,-288.92193258,0.000399,7]
[315008688,1708727465033,-288.92193258,0.000399,7]
[315008689,1708727465043,-288.92193258,0.000399,7]
[315008690,1708727465053,-288.92,0.000399,7]
[315008691,1708727465063,-744.06690033,0.000399,7]
[315008692,1708727465073,-744.06690033,0.000399,7]
[315008693,1708727465083,-744.06690033,0.000399,7]
[315008694,1708727465093,-744.06690033,0.000399,7]
[315008695,1708727465103,-744.06690033,0.000399,7]
[315008696,1708727465113,-744.06690033,0.000399,7]
[315008697,1708727465122,-744.06690033,0.000399,7]
[315008698,1708727465132,-744.06690033,0.000399,7]
[315008699,1708727465142,-744.06690033,0.000399,7]
[315008700,1708727465153,-744.06690033,0.000399,7]
[315008701,1708727465163,-744.06690033,0.000399,7]
[315008702,1708727465173,-744.06690033,0.000399,7]
[315008703,1708727465182,-744.06690033,0.000399,7]
[315008704,1708727465192,-744.06690033,0.000399,7]
[315008705,1708727465203,-744.06690033,0.000399,7]
[315008706,1708727465213,-744.06690033,0.000399,7]
[315008707,1708727465223,-744.06690033,0.000399,7]
[315008708,1708727465233,-744.06690033,0.000399,7]
[315008709,1708727465243,-744.06690033,0.000399,7]
[315008710,1708727465253,-744.06,0.000399,7]
[315008711,1708727465263,-150.0,0.00039913,2]
[315008712,1708727465273,-150.0,0.00039944,7]
[315008713,1708727465283,-150.0,0.00039947,2]
[315008714,1708727465293,-150.0,0.00039959,2]
[315008715,1708727465303,-4510.6,0.0003997,2]
[315008716,1708727465313,-300.0,0.0003997,2]
[315008717,1708727465322,-400.0,0.0003997,2]
[315008718,1708727465332,-1231.25904791,0.0003998,2]
[315008719,1708727465342,-27669.47653084,0.00039988,4]
[315008720,1708727465351,-2911.0,0.0003999,3]
[315008721,1708727465361,-5349.30919588,0.00039997,2]
[315008722,1708727465371,-150.01,0.00039999,2]
[315008723,1708727465381,-3181.97554328,0.00039999,2]
[315008724,1708727465391,-439.09101189,0.00039999,31]
[315008725,1708727465401,-371.41289172,0.00039999,31]
[315008726,1708727465410,-257.869226,0.00039999,31]
[315008727,1708727465420,-391.45583978,0.00039999,31]
[315008728,1708727465430,-285.97133776,0.00039999,31]
[315008729,1708727465441,-612.11301769,0.00039999,31]
[315008730,1708727465452,-366.29310844,0.00039999,31]
[315008731,1708727465461,-381.35727813,0.00039999,31]
[315008732,1708727465471,-375.25832792,0.00039999,31]
[315008733,1708727465482,-500.0,0.00039999,31]
[315008734,1708727465492,-445.66826918,0.00039999,31]
[315008735,1708727465502,-500.0,0.00039999,31]
[315008736,1708727465511,-490.26442159,0.00039999,31]
[315008737,1708727465522,-500.0,0.00039999,31]
[315008738,1708727465534,-244.34425752,0.00039999,31]
[315008739,1708727465543,-292.53808846,0.00039999,31]
[315008740,1708727465552,-150.0,0.0004,7]
[315008741,1708727465562,-8471.06996411,0.0004,7]
[315008742,1708727465571,-213.0,0.0004,41]
[315008743,1708727465581,-2000.0,0.0004,5]
[315008744,1708727465591,-2335.81629403,0.0004,4]
[315008745,1708727465600,-1632.6221,0.0004,5]
[315008746,1708727465610,-2000.0,0.0004,5]
[315008747,1708727465621,-70370.3508957,0.0004,2]
[315008748,1708727465630,-1400.0,0.0004,14]
[315008749,1708727465640,-42486.08293051,0.0004,4]
[315008750,1708727465650,-500000.0,0.0004,4]
[315008751,1708727465659,-299.33,0.0004,15]
[315008752,1708727465669,-2065.0,0.0004,5]
[315008753,1708727465678,-1165.41967545,0.0004,20]
[315008754,1708727465688,-4187.03394457,0.0004,30]
[315008755,1708727465699,-2477.13072922,0.0004,2]
[315008756,1708727465708,-321.0,0.0004,30]
[315008757,1708727465718,-1663.75951806,0.0004,120]
[315008758,1708727465728,-200.0,0.0004,14]
[315008759,1708727465738,-255.0,0.0004,12]
[315008760,1708727465747,-22780.683463,0.0004,2]
[315008761,1708727465757,-255.0,0.0004,12]
[315008762,1708727465766,-222.0,0.0004,2]
[315008763,1708727465776,-200.0,0.0004,15]
[315008764,1708727465787,-74013.280708,0.0004,2]
[315008765,1708727465797,-255.0,0.0004,12]
[315008766,1708727465806,-3323.562833,0.0004,2]
[315008767,1708727465816,-29426.4689214,0.0004,2]
[315008768,1708727465825,-2771.6425549,0.0004,2]
[315008769,1708727465835,-150.0,0.0004,12]
[315008770,1708727465845,-238.908155,0.0004,12]
[315008771,1708727465855,-255.0,0.0004,12]
[315008772,1708727465865,-882.621546,0.0004,12]
[315008773,1708727465875,-265.370214,0.0004,14]
[315008774,1708727465885,-3074.82,0.0004,7]
[315008775,1708727465895,-151.0,0.0004,14]
[315008776,1708727465905,-255.0,0.0004,12]
[315008777,1708727465915,-10000.0,0.0004,2]
[315008778,1708727465925,-255.0,0.0004,12]
[315008779,1708727465935,-274.18591969,0.0004,7]
[315008780,1708727465946,-150.0,0.0004,7]
[315008781,1708727465956,-150.0,0.0004,7]
[315008782,1708727465966,-150.0,0.0004,7]
[315008783,1708727465976,-150.0,0.0004,7]
[315008784,1708727465985,-150.0,0.0004,7]
[315008785,1708727465996,-150.0,0.0004,7]
[315008786,1708727466006,-151.0,0.0004,14]
[315008787,1708727466016,-278.87872,0.0004,14]
[315008788,1708727466026,-255.0,0.0004,12]
[315008789,1708727466037,-151.0,0.0004,11]
[315008790,1708727466046,-1000.0,0.0004,17]
[315008791,1708727466056,-151.0,0.0004,14]
[315008792,1708727466066,-4450.0,0.0004,5]
[315008793,1708727466076,-1000.0,0.0004,2]
[315008794,1708727466086,-1000.0,0.0004,2]
[315008795,1708727466096,-151.0,0.0004,14]
[315008796,1708727466106,-281.743159,0.0004,14]
[315008797,1708727466116,-151.0,0.0004,14]
[315008798,1708727466126,-3760.95850385,0.00040021,13]
[315008799,1708727466136,-1776.0,0.00040028,30]
[315008800,1708727466146,-350.0,0.00040028,30]
[315008801,1708727466157,-289.0,0.00040028,30]
[315008802,1708727466166,-500.0,0.0004003,2]
[315008803,1708727466177,-599.93826751,0.00040031,4]
[315008804,1708727466186,-538.04,0.00040031,4]
[315008805,1708727466197,-5017.79,0.00040055,7]
[315008806,1708727466208,-5017.79,0.00040055,7]
[315008807,1708727466219,-1300.0,0.000401,13]
[315008808,1708727466230,-200.0,0.000401,2]
[315008809,1708727466240,-200.0,0.000401,15]
[315008810,1708727466250,-538.04,0.00040168,4]
[315008811,1708727466261,-15185.12062188,0.00040179,2]
[315008812,1708727466271,-21244.0,0.0004018,20]
[315008813,1708727466282,-500.0,0.00040183,2]
[315008814,1708727466293,-152.669311,0.00040211,7]
[315008815,1708727466303,-153.54957341,0.00040243,30]
[315008816,1708727466314,-500.0,0.00040273,10]
[315008817,1708727466324,-225.0,0.00040274,14]
[315008818,1708727466334,-16076.26432106,0.000403,5]
[315008819,1708727466344,-538.04,0.00040305,4]
[315008820,1708727466355,-5017.79,0.00040328,7]
[315008821,1708727466365,-5017.79,0.00040328,7]
[315008822,1708727466376,-500.0,0.00040335,2]
[315008823,1708727466387,-350.49558775,0.000404,2]
[315008824,1708727466397,-3074.82,0.000404,7]
[315008825,1708727466407,-666.0,0.0004041,2]
[315008826,1708727466418,-8529.999999,0.0004042,2]
[315008827,1708727466428,-1776.0,0.0004044,30]
[315008828,1708727466438,-350.0,0.0004044,30]
[315008829,1708727466449,-289.0,0.0004044,30]
[315008830,1708727466462,-538.04,0.00040442,4]
[315008831,1708727466473,-169.65932675,0.00040447,14]
[315008832,1708727466484,-543.93960448,0.00040447,2]
[315008833,1708727466495,-151.0,0.00040451,2]
[315008834,1708727466505,-250.49088,0.00040451,2]
[315008835,1708727466516,-500.0,0.00040487,2]
[315008836,1708727466526,-200.0,0.000405,15]
[315008837,1708727466539,-151.0,0.000405,12]
[315008838,1708727466549,-150.0,0.00040512,2]
[315008839,1708727466558,-223.46943,0.00040512,2]
[315008840,1708727466569,-634.42123249,0.00040539,2]
[315008841,1708727466579,-58114.10826573,0.00040547,5]
[315008842,1708727466590,-58114.10826573,0.00040547,5]
[315008843,1708727466599,-58114.10826573,0.00040547,5]
[315008844,1708727466609,-58114.10826573,0.00040547,5]
[315008845,1708727466619,-58114.10826573,0.00040547,5]
[315008846,1708727466628,-58114.10826573,0.00040547,5]
[315008847,1708727466638,-58114.10826573,0.00040547,5]
[315008848,1708727466649,-58114.10826573,0.00040547,5]
[315008849,1708727466820,-58114.10826573,0.00040547,5]
[315008850,1708727466829,-58114.10726573,0.00040547,5]
[315008851,1708727466839,-1027.88905137,0.00040547,5]
[315008852,1708727466849,-151.0,0.00040547,14]
[315008853,1708727466858,-234.765,0.00040547,2]
[315008854,1708727466868,-151.0,0.00040547,2]
[315008855,1708727466878,-174.067172,0.00040547,14]
[315008856,1708727466887,-174.067172,0.00040547,14]
[315008857,1708727466897,-151.0,0.00040547,14]
[315008858,1708727466907,-151.0,0.00040547,14]
[315008859,1708727466916,-538.04,0.00040579,4]
[315008860,1708727466926,-21244.0,0.0004059,20]
[315008861,1708727466936,-1000.0,0.00040599,2]
[315008862,1708727466945,-200.0,0.000406,15]
[315008863,1708727466954,-5017.79,0.00040601,7]
[315008864,1708727466964,-5017.79,0.00040601,7]
[315008865,1708727466973,-500.0,0.00040639,2]
[315008866,1708727466983,-150.0,0.00040663,2]
[315008867,1708727466993,-538.04,0.00040716,4]
[315008868,1708727467002,-1000.0,0.00040733,2]
[315008869,1708727467011,-500.0,0.00040791,2]
[315008870,1708727467020,-3074.82,0.000408,7]
[315008871,1708727467030,-349.20597754,0.00040812,2]
[315008872,1708727467040,-173.17724569,0.00040812,2]
[315008873,1708727467049,-281.743159,0.00040822,14]
[315008874,1708727467059,-5881.83884464,0.00040838,3]
[315008875,1708727467068,-2000.0,0.00040848,31]
[315008876,1708727467078,-1776.0,0.00040853,30]
[315008877,1708727467087,-350.0,0.00040853,30]
[315008878,1708727467096,-289.0,0.00040853,30]
[315008879,1708727467106,-538.04,0.00040853,4]
[315008880,1708727467115,-5017.79,0.00040874,7]
[315008881,1708727467124,-5017.79,0.00040874,7]
[315008882,1708727467134,-10000.0,0.000409,30]
[315008883,1708727467143,-600.0,0.000409,15]
[315008884,1708727467153,-455.48688225,0.000409,30]
[315008885,1708727467163,-856.13982141,0.000409,10]
[315008886,1708727467173,-18323.7045425,0.00040912,2]
[315008887,1708727467183,-59532.7831194,0.00040912,2]
[315008888,1708727467192,-3323.562833,0.00040912,2]
[315008889,1708727467202,-23669.2601046,0.00040912,2]
[315008890,1708727467212,-2771.6425549,0.00040912,2]
[315008891,1708727467221,-219101.48309109,0.0004094,5]
[315008892,1708727467231,-14863.88161859,0.0004094,5]
[315008893,1708727467241,-151.0,0.0004094,14]
[315008894,1708727467251,-151.0,0.0004094,14]
[315008895,1708727467263,-151.0,0.0004094,14]
[315008896,1708727467272,-151.0,0.0004094,14]
[315008897,1708727467282,-151.0,0.0004094,14]
[315008898,1708727467292,-500.0,0.00040944,2]
[315008899,1708727467302,-5349.30919588,0.00040948,2]
[315008900,1708727467312,-22715.94012241,0.00040951,2]
[315008901,1708727467322,-200.0,0.00040976,30]
[315008902,1708727467332,-538.04,0.0004099,4]
[315008903,1708727467342,-163.456991,0.00040992,7]
[315008904,1708727467352,-172.568888,0.00040992,7]
[315008905,1708727467362,-152.669311,0.00040992,7]
[315008906,1708727467373,-38906.80527607,0.00041,21]
[315008907,1708727467584,-500.0,0.00027534,2]
[315008908,1708727467594,-349.53400718,0.00041,21]
[315008909,1708727467755,-60743.66071675,0.00041,21]
[315008910,1708727467764,-500.0,0.00041,2]
[315008911,1708727467773,-5000.0,0.00041,12]
[315008912,1708727467782,-500.0,0.00041,2]
[315008913,1708727467792,-4000.0,0.00041,20]
[315008914,1708727467801,-570.0,0.00041,18]
[315008915,1708727467810,-5020.103496,0.00041,30]
[315008916,1708727467819,-2100.0,0.00041,7]
[315008917,1708727467828,-246.16447505,0.00041,5]
[315008918,1708727467838,-3800.0,0.00041,30]
[315008919,1708727467847,-5000.0,0.00041,30]
[315008920,1708727467856,-800.0,0.00041,3]
[315008921,1708727467865,-2254.19246352,0.00041,2]
[315008922,1708727467874,-150.53,0.00041,120]
[315008923,1708727467884,-1000.0,0.00041,43]
[315008924,1708727467893,-688.31361888,0.00041,2]
[315008925,1708727467903,-958.76890871,0.00041,2]
[315008926,1708727467912,-259.40797043,0.00041,2]
[315008927,1708727467921,-5000.0,0.00041,15]
[315008928,1708727467930,-1097.13712639,0.00041,38]
[315008929,1708727467940,-7500.0,0.00041,20]
[315008930,1708727467955,-38700.83924103,0.00041,20]
[315008931,1708727467967,-3484.02210894,0.00041,20]
[315008932,1708727467979,-3519.36000001,0.00041,20]
[315008933,1708727468054,-280.15324502,0.00027397,2]
[315008934,1708727468066,-219.84675498,0.00027397,2]
[315008935,1708727468076,-365.14043332,0.00027671,2]
[315008936,1708727468159,-200.54048814,0.00027396,2]
[315008937,1708727468169,-301.0,0.00027396,2]
[315008938,1708727468179,-353.34695903,0.00027396,2]
[315008939,1708727468188,-328.19,0.00027397,10]
[315008940,1708727468198,-134.85956668,0.00027671,2]
[315008941,1708727468208,-500.0,0.00027808,2]
[315008942,1708727468219,-500.0,0.00027945,2]
[315008943,1708727468228,-500.0,0.00028082,2]
[315008944,1708727468238,-172.42,0.00028219,2]
[315008945,1708727468248,-2489.44766261,0.00030204,2]
[315008946,1708727468258,-997.31283821,0.00032032,7]
[315008947,1708727468276,-347.774,0.00032032,7]
[315008948,1708727468288,-273.59169232,0.00032032,7]
[315008949,1708727468341,-0.00670872,0.00032032,7]
[315008950,1708727468353,-17133.58785509,0.00032032,7]
[315008951,1708727468363,-332.93544173,0.00038986,30]
[315008952,1708727468372,-332.93544173,0.00038989,30]
[315008953,1708727468381,-332.93544173,0.00038989,30]
[315008954,1708727468391,-500.0,0.00039072,4]
[315008955,1708727468401,-1875.22730943,0.000391,30]
[315008956,1708727468411,-1135.48508574,0.00039639,30]
[315008957,1708727468420,-1135.48508574,0.00039642,30]
[315008958,1708727468430,-1135.48508574,0.00039689,30]
[315008959,1708727468441,-1135.48508574,0.00039727,30]
[315008960,1708727468454,-1135.48508574,0.00039743,30]
[315008961,1708727468465,-188013.01240488,0.00041,20]
[315008962,1708727468474,-300.0,0.00041,45]
[315008963,1708727468485,-40830.61560185,0.00041,2]
[315008964,1708727468498,-5978.82989206,0.00041,2]
[315008965,1708727468509,-1528.90214634,0.00041,2]
[315008966,1708727468523,-42025.7856,0.00041,2]
[315008967,1708727468544,-2992.14424809,0.00041,2]
[315008968,1708727468566,-332.93544173,0.00039038,30]
[315008969,1708727468575,-448.85306512,0.00041,2]
[315008970,1708727468586,-3884.29005274,0.00041,2]
[315008971,1708727468597,-1432.02,0.00041,2]
[315008972,1708727468609,-833.04272775,0.00041,2]
[315008973,1708727468620,-846.25242693,0.00041,2]
[315008974,1708727468629,-321.0,0.00041,30]
[315008975,1708727468638,-200.0,0.00041,16]
[315008976,1708727468648,-151.0,0.00041,12]
[315008977,1708727468657,-1209.74189245,0.00041,20]
[315008978,1708727468808,-649.38678454,0.00041,20]
[315008979,1708727468819,-13118.62325538,0.00041,20]
[315008980,1708727468831,-309.55552335,0.00041,20]
[315008981,1708727468842,-2546.7,0.00041,20]
[315008982,1708727468854,-1474.98574617,0.00041,20]
[315008983,1708727468866,-1935.00679811,0.00041,20]
[315008984,1708727468876,-3000.0,0.0004101,7]
[315008985,1708727468886,-204.0,0.00041027,21]
[315008986,1708727468894,-250.0,0.0004108,4]
[315008987,1708727468904,-663.92141169,0.00041095,14]
[315008988,1708727468915,-500.0,0.00041095,30]
[315008989,1708727468925,-500.0,0.00041095,30]
[315008990,1708727468934,-173.71617907,0.00041095,30]
[315008991,1708727468944,-1000.0,0.00041095,30]
[315008992,1708727468953,-500.0,0.00041095,30]
[315008993,1708727468962,-500.0,0.00041095,30]
[315008994,1708727468972,-500.0,0.00041095,30]
[315008995,1708727469020,-500.0,0.00041095,30]
[315008996,1708727469030,-603.9593226,0.00041095,30]
[315008997,1708727469041,-1000.0,0.00041095,2]
[315008998,1708727469050,-225.85592097,0.00041095,2]
[315008999,1708727469059,-500.0,0.00041095,2]
[315009000,1708727469068,-153.52522669,0.00041095,2]
[315009001,1708727469078,-500.0,0.00041095,4]
[315009002,1708727469087,-500.0,0.00041095,4]
[315009003,1708727469096,-500.0,0.00041095,4]
[315009004,1708727469105,-500.0,0.00041095,4]
[315009005,1708727469115,-500.0,0.00041095,4]
[315009006,1708727469126,-500.0,0.00041095,4]
[315009007,1708727469135,-500.0,0.00041095,4]
[315009008,1708727469145,-500.0,0.00041095,4]
[315009009,1708727469155,-500.0,0.00041095,4]
[315009010,1708727469164,-500.0,0.00041095,4]
[315009011,1708727469174,-550.1232011,0.00041095,4]
[315009012,1708727469184,-2000.0,0.00041095,5]
[315009013,1708727469193,-2000.0,0.00041095,5]
[315009014,1708727469204,-2000.0,0.00041095,5]
[315009015,1708727469214,-1165.89193977,0.00041095,5]
[315009016,1708727469227,-834.10806023,0.00041095,5]
[315009017,1708727469237,-1585.78126525,0.00041095,5]
[315009018,1708727469247,-620.78967452,0.00041095,10]
[315009019,1708727469258,-379.21032548,0.00041095,10]
[315009020,1708727469267,-1000.0,0.00041095,10]
[315009021,1708727469277,-1000.0,0.00041095,10]
[315009022,1708727469286,-1000.0,0.00041095,10]
[315009023,1708727469298,-1000.0,0.00041095,10]
[315009024,1708727469308,-1000.0,0.00041095,10]
[315009025,1708727469318,-1000.0,0.00041095,10]
[315009026,1708727469328,-1000.0,0.00041095,10]
[315009027,1708727469338,-1000.0,0.00041095,10]
[315009028,1708727469349,-1000.0,0.00041095,10]
[315009029,1708727469359,-1000.0,0.00041095,10]
[315009030,1708727469370,-1127.06671172,0.00041095,10]
[315009031,1708727469380,-204.73122151,0.00041096,2]
[315009032,1708727469390,-1033.33,0.00041096,2]
[315009033,1708727469400,-10527.95366819,0.00041096,5]
[315009034,1708727469412,-11638.19633181,0.00041096,5]
[315009035,1708727469422,-2400.0,0.00041096,15]
[315009036,1708727469432,-183.0,0.00041096,2]
[315009037,1708727469441,-500.0,0.00041096,7]
[315009038,1708727469452,-150.52,0.00041096,2]
[315009039,1708727469464,-375.0,0.000411,2]
[315009040,1708727469474,-7182.27810697,0.000411,2]
[315009043,1708728365115,152.0,0.00027811,120]
[315009057,1708728631983,-322.51111197,0.00024899,2]
[315009058,1708728631993,-300.0,0.000249,2]
[315009059,1708728632002,-50.43087874,0.00025,3]
[315009060,1708728632013,-699.56912126,0.00025,3]
[315009061,1708728632022,-998.83728815,0.00026124,5]
[315009062,1708728632031,-150.0,0.00026297,2]
[315009063,1708728632040,-604.08,0.00026326,2]
[315009064,1708728632049,-172.54649146,0.00026745,2]
[315009065,1708728632058,-163.33,0.00026794,2]
[315009066,1708728632067,-150.0,0.00026845,2]
[315009067,1708728632075,-250.0,0.00026922,2]
[315009068,1708728632085,-318.37,0.00026982,2]
[315009069,1708728632099,-800.0,0.00027,3]
[315009070,1708728632108,-674.28535206,0.00027281,3]
[315009071,1708728632118,-514.28201034,0.00027281,2]
[315009072,1708728632127,-150.0,0.00027296,2]
[315009073,1708728632136,-20320.57643819,0.00027297,2]
[315009074,1708728632149,-27238.23639763,0.00027297,2]
[315009075,1708728632160,-30442.7750615,0.00027297,2]
[315009076,1708728632172,-9276.62001971,0.00027297,2]
[315009077,1708728632183,-5661.76468619,0.00027297,2]
[315009078,1708728632199,-531.52383029,0.00027297,2]
[315009079,1708728632210,-2232.90621236,0.00027297,2]
[315009080,1708728632222,-172017.84561389,0.00027297,2]
[315009081,1708728632254,-1787.46021996,0.00027297,2]
[315009082,1708728632266,-1553.06,0.00027297,2]
[315009083,1708728632277,-1017.8,0.00027297,2]
[315009084,1708728632288,-1241.02500544,0.00027297,2]
[315009085,1708728632300,-444.83665933,0.00027297,2]
[315009086,1708728632311,-824.46006217,0.00027297,2]
[315009089,1708728637945,-1006.33096681,0.00027297,2]
[315009090,1708728638026,-22395.5345454,0.00027297,2]
[315009097,1708728638381,-507666.95008113,0.00027297,2]
[315009100,1708728638390,-422.38614092,0.00027381,2]
[315009102,1708728638399,-359.19698368,0.00027396,2]
[315009104,1708728638409,-415.01223825,0.00027396,2]
[315009106,1708728638418,-503.0,0.00027397,2]
[315009108,1708728638427,-333.94421347,0.00027397,2]
[315009110,1708728638436,-500.0,0.00027397,2]
[315009112,1708728638445,-500.0,0.00027397,2]
[315009114,1708728638454,-570.38362393,0.00027397,2]
[315009116,1708728638464,-520.21736162,0.00027397,2]
[315009118,1708728638473,-500.0,0.00027397,2]
[315009120,1708728638482,-526.60249195,0.00027397,2]
[315009122,1708728638492,-500.0,0.00027397,2]
[315009124,1708728638501,-500.0,0.00027397,2]
[315009126,1708728638510,-515.18279377,0.00027397,2]
[315009128,1708728638519,-504.36052993,0.00027397,2]
[315009130,1708728638528,-506.20901056,0.00027397,2]
[315009132,1708728638537,-625.57815286,0.00027397,2]